bitfinex-derivatives/quotes_ETHF0:USTF0_20240917
["timestamp","ask_amount","ask_price","bid_price","bid_amount"]
[1726603071684,0.42494,2352.7,2352.5,3.74496]
[1726603071981,1.1088,2352.9,2352.7,0.42492]
[1726603072191,1.1088,2352.9,2352.7,3.32]
[1726603072389,0.42491,2352.8,2352.7,3.32]
[1726603072588,1.1088,2352.9,2352.7,3.74493]
[1726603072589,1.53371,2352.9,2352.7,3.74493]
[1726603072795,0.42491,2352.8,2352.7,3.32]
[1726603073289,0.42491,2352.8,2352.6,0.42494]
[1726603073587,1.53371,2352.9,2352.7,0.42493]
[1726603073991,1.53371,2352.9,2352.6,0.42494]
[1726603074483,1.1088,2352.9,2352.8,0.42491]
[1726603074685,0.42487,2353.1,2352.8,0.4249]
[1726603075185,0.42484,2353.2,2352.8,0.4249]
[1726603075386,4.38211,2353.2,2352.7,3.2078]
[1726603075687,0.42491,2352.9,2352.7,3.2078]
[1726603076087,0.42491,2352.8,2352.7,3.2078]
[1726603076991,0.4249,2352.9,2352.7,3.2078]
[1726603077893,0.4249,2352.9,2352.7,6.5278]
[1726603078291,0.42491,2352.8,2352.7,6.5278]
[1726603078492,1.06211,2353.2,2352.7,6.95273]
[1726603078493,0.42491,2352.9,2352.7,6.95273]
[1726603078792,1.06211,2353.2,2352.8,0.42491]
[1726603078793,0.42489,2353.0,2352.8,0.42491]
[1726603079088,0.42491,2352.8,2352.7,6.5278]
[1726603079387,1.06216,2353.1,2352.3,4.71348098]
[1726603079388,1.06225,2352.9,2352.3,4.71348098]
[1726603079585,4.27009,2352.8,2352.4,0.42497]
[1726603079781,4.27009,2352.8,2352.3,0.31948098]
[1726603079782,0.42499,2352.4,2352.3,0.31948098]
[1726603079978,3.27927,2352.7,2352.1,4.79673]
[1726603080183,0.42501,2352.3,2352.1,0.42503]
[1726603080592,0.425,2352.3,2352.2,0.42502]
[1726603080892,0.42501,2352.3,2352.1,0.42503]
[1726603081594,0.42501,2352.3,2352.0,6.5278]
[1726603081595,0.425,2352.3,2352.2,0.42502]
[1726603081796,0.425,2352.3,2352.1,0.42502]
[1726603082091,3.3163,2352.7,2352.0,6.5278]
[1726603082290,0.425,2352.3,2352.1,0.42503]
[1726603082588,0.425,2352.3,2352.1,0.42504]
[1726603082799,1.06241,2352.6,2351.8,0.42508]
[1726603082800,3.32,2352.4,2351.8,0.42508]
[1726603082984,3.32,2352.4,2351.7,0.42511]
[1726603082985,0.42509,2351.9,2351.7,0.42511]
[1726603083384,1.06265,2352.0,2351.5,3.32]
[1726603083584,1.06265,2352.0,2351.2,1.65290463]
[1726603083585,0.42515,2351.5,2351.1,5.54123642]
[1726603083785,0.42517,2351.4,2351.2,0.4252]
[1726603083987,4.2528,2351.3,2350.8,1.10193642]
[1726603084187,7.59082,2351.2,2350.5,4.42193642]
[1726603084391,7.59082,2351.2,2350.6,0.4253]
[1726603084392,3.32,2351.0,2350.6,0.4253]
[1726603084584,0.42526,2350.9,2350.6,0.4253]
[1726603084784,0.42528,2350.8,2350.5,0.42533]
[1726603084984,0.42528,2350.8,2350.4,3.2078]
[1726603084985,1.06306,2351.1,2350.4,3.2078]
[1726603085185,0.42531,2350.7,2350.3,0.42536]
[1726603085388,3.32,2350.7,2350.0,2.2036]
[1726603085582,0.42534,2350.5,2350.1,0.4254]
[1726603085782,7.5971,2350.7,2350.1,3.32]
[1726603085981,7.5971,2350.7,2350.0,2.2036]
[1726603085982,0.42531,2350.6,2350.0,2.2036]
[1726603086185,1.0693,2350.7,2350.1,7.2978]
[1726603086390,1.0693,2350.7,2350.4,0.42534]
[1726603086597,1.0693,2350.7,2350.1,7.2978]
[1726603086992,1.0693,2350.7,2350.4,0.42534]
[1726603087490,1.4946,2350.7,2350.3,0.42535]
[1726603088192,1.0693,2350.7,2350.4,0.42534]
[1726603088588,1.06302,2351.2,2350.5,0.42532]
[1726603088589,0.42527,2350.9,2350.5,0.42532]
[1726603088790,0.42524,2351.1,2350.6,0.4253]
[1726603088987,0.42523,2351.1,2350.7,0.42529]
[1726603090593,1.0409,2351.2,2350.6,0.42529]
[1726603090594,0.42525,2351.0,2350.6,0.42529]
[1726603090893,0.42525,2351.0,2350.6,0.4253]
[1726603091094,0.42531,2350.7,2350.3,0.42536]
[1726603091285,3.2078,2351.1,2350.3,0.42536]
[1726603091286,0.42531,2350.6,2350.3,0.42536]
[1726603091692,0.4253,2350.7,2350.4,0.42534]
[1726603091887,1.0409,2351.2,2350.4,4.09]
[1726603092196,0.42524,2351.0,2350.4,7.2978]
[1726603092390,1.0409,2351.2,2350.8,0.42527]
[1726603092586,0.42527,2350.9,2350.6,0.4253]
[1726603092786,0.42527,2350.9,2350.1,1.0635]
[1726603092787,3.2078,2351.1,2350.1,3.2078]
[1726603092990,1.0409,2351.2,2350.1,0.42539]
[1726603092991,3.2078,2350.5,2350.1,0.42539]
[1726603093196,1.06328,2350.7,2350.1,0.42539]
[1726603093197,0.42537,2350.3,2350.1,0.42539]
[1726603093600,0.42537,2350.3,2350.2,4.2552]
[1726603093896,0.42538,2350.3,2350.1,0.4254]
[1726603094100,1.073,2350.4,2350.0,0.42541]
[1726603094296,1.073,2350.4,2349.8,7.463]
[1726603094297,0.42538,2350.3,2350.1,0.42539]
[1726603094701,1.073,2350.4,2350.1,4.2552]
[1726603094702,0.42538,2350.2,2350.1,4.2552]
[1726603094998,0.42537,2350.3,2350.1,0.42539]
[1726603095199,0.42537,2350.3,2349.8,3.2078]
[1726603095200,0.42538,2350.3,2350.0,0.42541]
[1726603095495,0.42537,2350.3,2350.1,0.4254]
[1726603095798,1.105,2350.6,2350.1,7.2978]
[1726603096004,0.4253,2350.7,2350.5,0.42532]
[1726603096203,0.42532,2350.6,2350.4,0.42534]
[1726603096498,2.20877,2350.9,2350.8,0.42528]
[1726603096499,1.1456,2350.9,2350.8,0.42528]
[1726603096689,1.1456,2350.9,2350.4,7.2978]
[1726603096894,1.1456,2350.9,2350.8,0.42528]
[1726603097294,2.14444,2351.2,2350.7,3.2078]
[1726603097295,1.0814,2351.2,2350.7,3.2078]
[1726603097493,1.0814,2351.2,2350.4,7.2978]
[1726603097701,1.0814,2351.2,2350.7,0.42529]
[1726603097702,4.27086,2351.1,2350.7,0.42529]
[1726603097906,0.42527,2350.9,2350.7,0.42529]
[1726603098205,0.42527,2350.9,2350.5,0.42532]
[1726603098206,1.06318,2350.9,2350.5,0.42532]
[1726603098496,0.4253,2350.7,2350.5,0.42532]
[1726603098696,0.42532,2350.6,2350.3,4.2701]
[1726603099095,0.42532,2350.6,2350.5,0.42533]
[1726603099513,0.4253,2350.7,2350.3,4.2701]
[1726603099804,0.4253,2350.7,2350.6,0.42531]
[1726603100196,0.42532,2350.6,2350.5,0.42532]
[1726603100394,0.4253,2350.7,2350.6,0.42531]
[1726603100593,0.42531,2350.6,2350.5,0.42532]
[1726603100804,0.42531,2350.7,2350.5,0.42532]
[1726603101001,0.42531,2350.7,2350.6,0.42531]
[1726603101203,0.42531,2350.6,2350.5,0.42532]
[1726603101592,0.42529,2350.8,2350.4,0.42535]
[1726603101792,1.0814,2351.2,2351.0,0.42523]
[1726603101993,0.42522,2351.1,2351.0,0.42523]
[1726603102197,1.0814,2351.2,2350.6,8.36109]
[1726603102398,2.2068,2351.3,2351.0,0.42523]
[1726603102600,0.42523,2351.1,2350.6,8.36109]
[1726603102798,2.2068,2351.3,2350.9,0.42525]
[1726603102799,3.26979,2351.3,2350.9,0.42525]
[1726603102993,3.26979,2351.3,2350.3,4.2701]
[1726603102994,1.06311,2351.0,2350.3,4.2701]
[1726603103196,3.2078,2351.1,2350.4,1.06338]
[1726603103398,3.2078,2351.1,2350.7,0.42528]
[1726603103399,0.42528,2350.8,2350.7,0.42528]
[1726603103709,3.2078,2351.1,2350.6,3.2078]
[1726603103904,3.2078,2351.1,2350.8,0.42527]
[1726603104099,0.42525,2351.0,2350.9,0.42526]
[1726603104307,4.27088,2351.1,2350.7,0.42528]
[1726603104605,4.27088,2351.1,2350.6,0.4253]
[1726603104606,0.4253,2350.7,2350.6,0.4253]
[1726603105000,0.4253,2350.7,2350.5,0.42532]
[1726603105299,0.4253,2350.7,2350.6,0.42531]
[1726603105496,2.11591,2351.0,2350.6,0.42531]
[1726603105699,0.42528,2350.8,2350.7,0.42529]
[1726603106000,0.42528,2350.8,2350.6,0.4253]
[1726603106702,0.42528,2350.8,2350.7,0.42529]
[1726603107305,0.42529,2350.7,2350.6,0.4253]
[1726603107705,0.42529,2350.7,2350.3,8.3601]
[1726603107706,0.42532,2350.6,2350.5,0.42532]
[1726603108005,1.06317,2350.9,2350.6,0.42531]
[1726603108398,0.42531,2350.7,2350.6,0.42531]
[1726603108598,1.06317,2350.9,2350.5,0.42532]
[1726603108599,0.42531,2350.6,2350.5,0.42532]
[1726603108795,1.06317,2350.9,2350.6,0.42531]
[1726603108796,0.42531,2350.7,2350.6,0.42531]
[1726603109302,0.42528,2350.8,2350.7,0.42528]
[1726603110308,0.42532,2350.6,2350.5,0.42533]
[1726603113707,3.2078,2351.1,2350.5,10.2544]
[1726603113908,3.2078,2351.1,2351.0,0.42524]
[1726603114411,3.2078,2351.1,2350.8,3.2078]
[1726603114412,0.42526,2350.9,2350.8,3.2078]
[1726603114612,3.2078,2351.1,2350.8,3.2078]
[1726603114914,0.42525,2351.0,2350.9,0.42525]
[1726603115601,0.42529,2350.8,2350.5,3.2078]
[1726603115807,0.42526,2350.9,2350.8,0.42527]
[1726603116008,0.42524,2351.0,2350.8,3.2078]
[1726603116213,0.42526,2350.9,2350.8,3.63307]
[1726603116407,0.42526,2350.9,2350.8,3.2078]
[1726603116614,0.42526,2350.9,2350.8,0.42528]
[1726603116913,0.42527,2350.9,2350.8,0.42527]
[1726603117115,0.42527,2350.9,2350.4,4.27116]
[1726603117116,0.42528,2350.8,2350.7,0.42529]
[1726603117315,0.42528,2350.8,2350.4,4.27116]
[1726603117316,1.06311,2351.0,2350.6,0.42531]
[1726603117615,1.06311,2351.0,2350.4,3.2078]
[1726603117616,1.06315,2350.9,2350.5,0.42531]
[1726603118118,1.06315,2350.9,2350.6,0.42531]
[1726603118119,0.4253,2350.7,2350.6,0.42531]
[1726603118308,0.42532,2350.6,2350.5,0.42532]
[1726603118617,1.06309,2351.1,2350.8,0.42527]
[1726603118808,0.42528,2350.8,2350.7,0.42528]
[1726603119507,1.06309,2351.1,2350.4,4.27117]
[1726603119711,0.42528,2350.8,2350.7,0.42528]
[1726603120311,1.06315,2350.9,2350.4,3.2078]
[1726603120717,0.42532,2350.6,2350.5,0.42532]
[1726603121414,0.42533,2350.5,2350.4,3.63314]
[1726603121609,1.1512,2350.8,2350.4,3.2078]
[1726603122110,1.1512,2350.8,2350.5,0.42531]
[1726603122307,1.1512,2350.8,2350.4,3.2078]
[1726603122308,0.42531,2350.7,2350.6,0.42531]
[1726603122502,3.2078,2351.4,2350.4,3.2078]
[1726603122706,0.42525,2351.0,2350.9,3.63306]
[1726603124209,0.42526,2350.9,2350.8,0.42527]
[1726603124615,0.42528,2350.8,2350.7,0.42528]
[1726603125511,0.42527,2350.9,2350.8,0.42527]
[1726603126020,0.42525,2351.0,2350.9,0.42525]
[1726603127710,0.42524,2351.1,2351.0,0.42523]
[1726603127906,1.06302,2351.2,2350.7,3.63309]
[1726603127907,0.42528,2350.8,2350.7,3.63309]
[1726603128114,3.2078,2351.4,2351.3,0.42519]
[1726603128311,1.06276,2351.8,2351.3,0.42519]
[1726603128312,0.42516,2351.5,2351.4,0.42515]
[1726603128712,1.5601,2351.8,2351.7,0.42511]
[1726603128907,3.2078,2351.9,2351.5,3.32]
[1726603128908,3.63289,2351.9,2351.5,3.32]
[1726603129220,3.2078,2351.9,2351.8,0.42509]
[1726603129620,3.63288,2351.9,2351.8,0.42509]
[1726603129822,0.4251,2351.8,2351.7,0.4251]
[1726603130223,3.63289,2351.9,2351.8,0.42509]
[1726603130813,3.2078,2351.9,2351.8,0.42509]
[1726603131117,0.42502,2352.2,2352.1,0.42504]
[1726603131523,0.42504,2352.1,2352.0,3.63285]
[1726603131817,1.48765,2352.1,2352.0,3.2078]
[1726603133819,1.48765,2352.1,2351.6,1.06283]
[1726603133820,0.42509,2351.9,2351.8,0.42508]
[1726603134210,0.42508,2352.0,2351.9,0.42506]
[1726603134415,4.3428,2352.3,2351.8,1.06274]
[1726603134826,4.3428,2352.3,2352.2,0.42502]
[1726603134827,4.76782,2352.3,2352.2,0.42502]
[1726603135718,0.42503,2352.2,2352.1,0.42503]
[1726603136421,1.1515,2352.5,2352.1,0.42503]
[1726603136422,4.68944,2352.7,2352.6,0.42495]
[1726603136616,0.42497,2352.5,2352.3,3.2078]
[1726603137017,4.2645,2352.7,2352.3,3.2078]
[1726603137324,3.2078,2352.7,2352.6,0.42495]
[1726603138117,3.2078,2352.7,2352.3,4.2781]
[1726603138118,3.2078,2352.7,2352.5,0.42496]
[1726603138424,3.63274,2352.7,2352.5,0.42496]
[1726603138626,3.63274,2352.7,2352.6,0.42495]
[1726603138627,3.2078,2352.7,2352.6,0.42495]
[1726603138827,0.42492,2352.8,2352.6,0.42495]
[1726603139123,0.42492,2352.8,2352.5,0.42496]
[1726603139424,0.42493,2352.7,2352.5,0.42496]
[1726603139625,0.42492,2352.8,2352.5,0.42496]
[1726603140323,4.2855,2353.0,2352.3,4.2781]
[1726603140517,0.42492,2352.8,2352.3,3.2078]
[1726603140713,0.42492,2352.8,2352.6,0.42495]
[1726603140918,4.2855,2353.0,2352.3,4.2807]
[1726603141222,4.2855,2353.0,2352.5,0.42496]
[1726603141425,4.2855,2353.0,2352.6,0.42494]
[1726603141620,1.0777,2353.0,2352.6,0.42494]
[1726603141924,0.42491,2352.9,2352.7,0.42493]
[1726603142424,0.42493,2352.8,2352.6,0.42495]
[1726603142830,0.42493,2352.7,2352.5,0.42496]
[1726603143029,0.42493,2352.8,2352.6,0.42495]
[1726603143328,4.2855,2353.0,2352.2,1.1319]
[1726603143527,4.2855,2353.0,2352.3,0.425]
[1726603143528,4.27015,2352.7,2352.3,0.425]
[1726603143723,0.4249,2352.9,2352.2,5.2119]
[1726603143924,1.0777,2353.0,2352.4,4.08]
[1726603144121,1.0777,2353.0,2352.6,3.63274]
[1726603144324,1.0777,2353.0,2352.3,1.0579]
[1726603144325,2.2593,2353.1,2352.3,2.1204]
[1726603144531,2.2593,2353.1,2352.5,3.2078]
[1726603144827,2.2593,2353.1,2352.6,1.06238]
[1726603145028,1.56425,2353.2,2353.1,0.42486]
[1726603145029,1.1394,2353.2,2353.1,0.42486]
[1726603145235,0.42484,2353.2,2353.0,0.42486]
[1726603145623,0.42476,2353.7,2353.5,0.42477]
[1726603145826,0.42478,2353.6,2353.4,0.42479]
[1726603146028,0.42478,2353.6,2353.4,0.4248]
[1726603146232,3.2078,2354.5,2353.5,8.3288]
[1726603146444,3.63233,2355.0,2354.6,0.42458]
[1726603146727,3.63233,2355.0,2354.4,4.08]
[1726603146728,1.06148,2354.6,2353.9,3.2078]
[1726603146935,1.06162,2354.3,2353.9,3.2078]
[1726603147126,3.2078,2354.4,2353.9,3.2078]
[1726603147323,0.42464,2354.4,2353.9,7.2878]
[1726603147522,2.2527,2354.5,2354.2,0.42466]
[1726603147728,2.2527,2354.5,2353.9,7.2878]
[1726603147933,2.67731,2354.5,2354.2,0.42465]
[1726603148138,9.7077,2354.5,2353.9,3.2078]
[1726603148433,0.42465,2354.3,2353.9,3.2078]
[1726603148630,2.2527,2354.5,2354.1,0.42467]
[1726603149135,2.2527,2354.5,2353.9,7.2878]
[1726603149136,0.42463,2354.4,2353.9,7.2878]
[1726603149329,2.2527,2354.5,2353.9,7.2878]
[1726603149535,2.67732,2354.5,2353.9,7.2878]
[1726603149742,0.42463,2354.4,2354.1,0.42467]
[1726603150040,2.2527,2354.5,2353.9,3.63251]
[1726603150333,2.2527,2354.5,2353.9,3.2078]
[1726603150535,2.2527,2354.5,2353.9,3.6325]
[1726603150735,2.2527,2354.5,2353.6,4.3482]
[1726603150934,0.42474,2353.8,2353.6,3.2078]
[1726603151229,0.42475,2353.7,2353.6,3.2078]
[1726603152427,4.3573,2353.9,2353.2,1.1478]
[1726603152629,3.2078,2353.6,2353.0,3.2078]
[1726603152826,0.42486,2353.1,2353.0,3.2078]
[1726603153132,0.42486,2353.2,2353.0,3.2078]
[1726603153439,0.42491,2352.9,2352.6,3.2078]
[1726603153633,1.0592,2353.1,2352.6,3.2078]
[1726603153933,0.42489,2353.0,2352.6,3.63274]
[1726603154144,1.0592,2353.1,2352.6,3.2078]
[1726603154437,0.42491,2352.9,2352.6,3.2078]
[1726603154622,0.42489,2353.0,2352.6,3.63274]
[1726603154826,1.0592,2353.1,2352.6,3.63274]
[1726603155233,1.0592,2353.1,2352.9,3.63269]
[1726603155427,0.42483,2353.3,2352.9,3.63269]
[1726603155632,0.42484,2353.2,2352.9,3.63269]
[1726603155833,0.42487,2353.1,2352.7,0.42492]
[1726603156227,4.26986,2353.4,2352.6,3.2078]
[1726603156434,0.42486,2353.1,2352.7,0.42492]
[1726603156928,0.42486,2353.1,2352.8,0.42491]
[1726603157634,2.2042,2353.5,2352.9,3.63269]
[1726603157829,0.42485,2353.2,2352.9,3.63269]
[1726603158030,0.42484,2353.2,2352.9,3.63269]
[1726603158225,3.2078,2353.7,2353.0,8.3296]
[1726603158532,3.2078,2353.7,2353.4,0.4248]
[1726603158533,3.63256,2353.7,2353.4,0.4248]
[1726603158834,3.2078,2353.7,2353.5,0.42477]
[1726603159031,3.2078,2353.7,2353.2,3.2078]
[1726603159234,0.42479,2353.5,2353.2,0.42483]
[1726603159438,0.42479,2353.5,2353.2,3.63263]
[1726603159630,0.42479,2353.5,2353.1,1.1376]
[1726603159631,0.42481,2353.4,2353.3,3.2078]
[1726603159831,0.42483,2353.3,2353.0,0.42487]
[1726603160539,0.42485,2353.2,2352.9,0.42489]
[1726603160737,4.26982,2353.4,2352.9,3.2078]
[1726603160738,0.42486,2353.1,2352.9,3.2078]
[1726603160931,0.42483,2353.3,2353.0,0.42486]
[1726603161131,0.42485,2353.2,2352.9,0.42489]
[1726603161436,4.3547,2353.5,2352.6,3.63274]
[1726603161735,4.3547,2353.5,2352.5,1.1085]
[1726603161736,2.15899,2353.1,2352.5,3.63276]
[1726603161936,0.4249,2352.9,2352.5,3.63276]
[1726603162139,1.0622,2353.0,2352.5,3.63276]
[1726603162140,2.1997,2353.0,2352.5,3.63276]
[1726603162337,0.42492,2352.8,2352.5,3.2078]
[1726603162642,0.4249,2352.9,2352.6,0.42494]
[1726603163131,1.1375,2353.0,2352.5,3.2078]
[1726603163337,4.27005,2352.9,2352.4,0.42498]
[1726603163538,0.42494,2352.7,2352.4,0.42497]
[1726603163838,1.06229,2352.8,2352.3,0.425]
[1726603164038,1.06229,2352.8,2352.4,0.42498]
[1726603164230,1.1451,2352.9,2352.4,0.42498]
[1726603164430,0.42494,2352.7,2352.4,0.42498]
[1726603164630,0.42494,2352.7,2352.2,3.2078]
[1726603164631,1.06234,2352.7,2352.2,3.2078]
[1726603164827,1.0623,2352.8,2352.2,3.2078]
[1726603165028,1.0623,2352.8,2352.1,2.2575]
[1726603165029,1.06234,2352.7,2352.1,1.1085]
[1726603165233,3.2078,2352.6,2351.8,8.3714]
[1726603165436,0.42505,2352.1,2351.8,0.42509]
[1726603165637,0.42507,2352.0,2351.7,4.3309]
[1726603166031,5.3967,2352.3,2351.9,0.42506]
[1726603166032,1.1333,2352.2,2351.9,0.42506]
[1726603166232,0.42505,2352.1,2351.7,8.83601]
[1726603166541,1.55833,2352.2,2351.8,0.42509]
[1726603166734,1.55833,2352.2,2351.9,0.42507]
[1726603167453,4.252,2352.1,2351.6,0.42512]
[1726603167639,2.19587,2352.2,2351.6,0.42512]
[1726603167640,0.42508,2351.9,2351.6,0.42512]
[1726603167940,1.1333,2352.2,2351.6,0.42512]
[1726603168129,0.42507,2352.0,2351.8,3.2078]
[1726603168332,1.1333,2352.2,2351.4,3.2078]
[1726603168538,1.1333,2352.2,2351.7,3.2078]
[1726603168539,0.42507,2352.0,2351.7,3.2078]
[1726603168739,0.42508,2351.9,2351.7,3.2078]
[1726603169147,1.1333,2352.2,2351.8,4.08]
[1726603169334,3.2078,2352.6,2351.8,4.08]
[1726603169335,4.27019,2352.6,2351.8,4.08]
[1726603169636,0.42505,2352.1,2351.8,0.42509]
[1726603169839,4.27022,2352.6,2351.9,3.2078]
[1726603170036,4.27022,2352.6,2352.0,3.2078]
[1726603170240,4.27022,2352.6,2351.7,3.2078]
[1726603170444,4.27022,2352.6,2351.5,4.08]
[1726603170445,4.27022,2352.6,2352.0,3.2078]
[1726603170740,0.42502,2352.3,2352.0,3.63286]
[1726603170948,0.42502,2352.3,2352.0,3.2078]
[1726603171836,0.42502,2352.3,2352.1,0.42504]
[1726603172540,0.42498,2352.5,2352.2,0.42501]
[1726603172743,0.425,2352.4,2352.2,0.42502]
[1726603172942,0.425,2352.4,2352.0,3.2078]
[1726603173246,3.2078,2352.6,2352.0,3.2078]
[1726603173247,0.42503,2352.2,2352.0,3.2078]
[1726603173637,0.42504,2352.1,2352.0,3.2078]
[1726603173837,0.42502,2352.3,2352.0,3.2078]
[1726603174040,4.27019,2352.6,2352.0,3.2078]
[1726603174341,3.2021,2352.7,2351.6,3.2078]
[1726603174342,3.2078,2352.3,2351.6,3.2078]
[1726603174539,3.2078,2352.3,2351.9,0.42507]
[1726603174734,0.42504,2352.1,2351.9,0.42507]
[1726603174936,0.42504,2352.1,2351.6,12.01094133]
[1726603174937,0.42506,2352.0,2351.8,0.42509]
[1726603175435,0.42503,2352.2,2352.0,0.42505]
[1726603175634,0.42503,2352.2,2352.0,3.63285]
[1726603176042,6.4099,2352.7,2352.0,3.2078]
[1726603176245,4.26998,2353.1,2352.3,3.2078]
[1726603176444,1.0957,2353.1,2352.5,3.2078]
[1726603176649,0.42492,2352.8,2352.6,0.42494]
[1726603176839,1.0622,2353.0,2352.5,3.2078]
[1726603177039,1.0622,2353.0,2352.2,2.1481]
[1726603177040,1.06225,2352.9,2352.4,0.42497]
[1726603177347,0.42496,2352.6,2352.4,0.42498]
[1726603177749,0.42497,2352.5,2352.4,0.42498]
[1726603177939,0.42496,2352.6,2352.5,0.42497]
[1726603178141,0.42494,2352.7,2352.5,0.42497]
[1726603178336,1.0957,2353.1,2352.7,0.42492]
[1726603178337,0.4249,2352.9,2352.7,0.42492]
[1726603178539,0.42489,2353.0,2352.8,3.2078]
[1726603178741,0.42489,2353.0,2352.8,3.6327]
[1726603178944,0.42488,2353.0,2352.8,3.6327]
[1726603179345,0.4249,2352.9,2352.8,3.2078]
[1726603179648,0.42486,2353.2,2353.0,0.42488]
[1726603179946,0.42486,2353.2,2352.8,3.2078]
[1726603180149,0.42486,2353.1,2353.0,0.42487]
[1726603180344,0.42486,2353.1,2352.7,0.42493]
[1726603180345,1.06218,2353.1,2352.7,0.42493]
[1726603180543,0.42491,2352.8,2352.7,0.42493]
[1726603181041,3.1998,2353.2,2352.8,0.42491]
[1726603181246,0.42489,2353.0,2352.5,1.06243]
[1726603181545,1.06216,2353.1,2352.4,7.2878]
[1726603181741,0.4249,2352.9,2352.4,4.27026]
[1726603182046,0.42486,2353.1,2353.0,0.42487]
[1726603182249,0.42486,2353.1,2352.7,3.2078]
[1726603182250,1.06199,2353.5,2352.7,3.2078]
[1726603182453,0.42486,2353.1,2353.0,0.42487]
[1726603182748,1.115,2353.5,2353.2,0.42484]
[1726603182952,0.42483,2353.3,2353.1,0.42485]
[1726603183253,1.115,2353.5,2353.0,3.2078]
[1726603183546,0.42479,2353.5,2353.4,0.4248]
[1726603183747,2.15387,2353.8,2353.4,0.4248]
[1726603184140,2.15387,2353.8,2353.3,3.2078]
[1726603184141,0.42477,2353.6,2353.5,0.42478]
[1726603184446,0.42477,2353.6,2353.3,3.2078]
[1726603184447,0.42474,2353.8,2353.7,0.42475]
[1726603185044,1.1236,2354.3,2353.7,10.2488]
[1726603185240,1.1236,2354.3,2353.6,3.4195619]
[1726603185241,4.26946,2354.2,2353.6,3.4195619]
[1726603185440,0.42473,2353.9,2353.7,0.42474]
[1726603185645,0.42473,2353.9,2353.8,0.42473]
[1726603185945,1.06166,2354.2,2353.8,0.42473]
[1726603185946,0.4247,2354.0,2353.8,0.42473]
[1726603186347,1.1236,2354.3,2354.0,0.4247]
[1726603186552,1.1236,2354.3,2353.9,3.63251]
[1726603186742,1.1236,2354.3,2353.9,3.2078]
[1726603186942,1.1236,2354.3,2353.9,0.42471]
[1726603186943,0.42469,2354.1,2353.9,0.42471]
[1726603187361,0.42468,2354.2,2354.0,0.42469]
[1726603187543,0.42468,2354.2,2353.9,0.42471]
[1726603187850,0.42468,2354.2,2353.3,1.59873271]
[1726603187851,0.42485,2353.2,2352.9,3.2078]
[1726603188059,4.248,2354.1,2352.9,3.2078]
[1726603188060,1.06167,2354.2,2353.4,0.4248]
[1726603188348,0.42472,2353.9,2353.7,3.2078]
[1726603188544,0.42471,2354.0,2353.4,0.42481]
[1726603188747,3.2078,2354.4,2353.6,3.2078]
[1726603189048,3.2078,2354.1,2353.6,3.2078]
[1726603189252,3.63249,2354.1,2353.6,3.2078]
[1726603190159,4.75606,2354.3,2353.6,3.63257]
[1726603190342,4.75606,2354.3,2353.6,3.2078]
[1726603190343,0.42467,2354.2,2353.6,3.2078]
[1726603190743,4.3314,2354.3,2353.6,3.63256]
[1726603191046,4.3314,2354.3,2353.8,3.2078]
[1726603191355,0.42481,2353.4,2352.8,3.2078]
[1726603191547,3.2078,2353.5,2352.6,1.2813023]
[1726603191743,2.0831,2353.8,2353.3,0.42482]
[1726603191943,1.0312,2353.8,2353.2,3.2078]
[1726603192148,1.0312,2353.8,2353.3,1.0731]
[1726603193151,3.2078,2354.3,2353.5,3.2078]
[1726603193353,3.16872,2354.6,2353.7,3.2078]
[1726603193354,1.0889,2354.5,2353.7,3.2078]
[1726603193655,1.0889,2354.5,2353.6,4.08]
[1726603193656,3.63246,2354.3,2353.8,1.0572]
[1726603193858,3.2078,2354.0,2353.8,1.0572]
[1726603194152,3.2078,2354.0,2353.3,5.1531]
[1726603194352,3.2078,2354.0,2353.5,1.0572]
[1726603194744,1.0889,2354.5,2353.5,1.0572]
[1726603194745,0.42467,2354.2,2353.5,1.0572]
[1726603194942,1.0889,2354.5,2353.7,3.2078]
[1726603195141,1.0889,2354.5,2353.8,0.42472]
[1726603195340,1.0889,2354.5,2353.7,3.2078]
[1726603195341,1.0889,2354.5,2353.9,1.072]
[1726603195744,1.51351,2354.5,2353.9,1.072]
[1726603196364,1.0889,2354.5,2353.9,1.072]
[1726603197045,1.0889,2354.5,2353.9,4.2798]
[1726603197247,1.0889,2354.5,2353.6,3.2078]
[1726603197455,3.2078,2354.3,2353.6,3.2078]
[1726603197658,0.42469,2354.1,2353.6,3.2078]
[1726603198252,3.2078,2354.3,2353.6,3.2078]
[1726603198649,0.4247,2354.1,2353.6,3.2078]
[1726603199150,3.2078,2354.3,2353.6,3.2078]
[1726603199151,0.4247,2354.0,2353.6,3.2078]
[1726603199460,0.42471,2354.0,2353.6,3.2078]
[1726603199750,2.15044,2354.5,2353.6,3.2078]
[1726603199751,1.0889,2354.5,2353.6,3.2078]
[1726603199951,0.42467,2354.2,2353.6,3.2078]
[1726603200161,1.0889,2354.5,2353.6,3.2078]
[1726603200350,0.42468,2354.2,2353.6,0.42476]
[1726603200658,0.42468,2354.1,2353.6,0.42476]
[1726603201052,0.42468,2354.1,2353.6,3.63256]
[1726603201251,3.63254,2353.8,2353.3,0.42481]
[1726603201552,1.1086,2353.7,2352.9,1.40280256]
[1726603201750,0.42478,2353.6,2353.1,0.42485]
[1726603201955,3.2078,2353.5,2352.9,5.1549]
[1726603202158,1.0797,2353.5,2352.9,5.1549]